Cogmind - Beta 11 *** ADVENTURER MODE // 2022.03.27 @ 20:43:50 Player: toastahs Result: Destroyed by G-73 Enforcer with Phase Gun Performance ------------- Evolutions (6) 3000 Regions Visited (17) 3400 Robots Destroyed (133) 665 Value Destroyed (5351) 5351 Prototype IDs (7) 140 Alien Tech Used (0) 0 Bonus (2073) 2073 TOTAL SCORE: 14629 Bonus ------- High Alert Combat Kills 168 Follower Combat Kills 333 Entered DSFs 1000 Aligned with FarCom 300 Met Zhirov 300 Friendly Fire -28 Cogmind --------- Core Integrity 0/1150 Matter 290/300 Energy 98/100 System Corruption 10% Temperature Cool (0) Movement Core (50) Location -3/Proximity Caves Parts ------- > --- POWER (4) -------- (None) > --- PROPULSION (5) --- (None) > --- UTILITY (6) ------ Triangulator Signal Interpreter > --- WEAPON (4) ------- (None) > --- INVENTORY (5) ---- Flexi-carbon Leg Advanced Cooling System Improved Weapon Cycler Hardened Medium Armor Plating Peak State ------------ > --- POWER ------------ Fission Core Fission Core Fission Core Fission Core > --- PROPULSION ------- Titanium Leg Flexi-carbon Leg Flexi-carbon Leg Flexi-carbon Leg Flexi-carbon Leg > --- UTILITY ---------- Advanced Cryofiber Web Advanced Cooling System Medium Storage Unit Signal Interpreter Precision Matter Filter Improved Weapon Cycler > --- WEAPON ----------- Cooled Plasma Cannon Cooled Plasma Cannon Heavy Phase Cannon Enhanced Nova Cannon > --- INVENTORY -------- Angular Momentum Engine Neutrino Core Flexi-carbon Leg Improved Heat Sink Triangulator Hardened Medium Armor Plating Reflective Plating Advanced Beam Cannon Improved Grenade Launcher [Rating: 101] Favorites ----------- Power Fission Core Engine Deuterium Engine Power Core Fission Core Propulsion Flexi-carbon Leg Leg Flexi-carbon Leg Hover Unit Airjet Flight Unit Flight Unit Utility Signal Interpreter Device Advanced Cooling System Storage Medium Storage Unit Processor Signal Interpreter Protection Hardened Medium Armor Plating Weapon Cooled Plasma Cannon Energy Gun Field Laser Energy Cannon Cooled Plasma Cannon Ballistic Cannon Flak Cannon Launcher Shock Bomb Launcher Build | -11 -10 -10 -9 -9 -9 -8 -8 -7 -7 -6 -5 -5 -4 -4 -4 -4 -3 ------- Run | Scr Mat Min Mat Min Exi Min Mat Fac DSF Fac Fac DSF Fac Upp Upp Zhi Pro Slots Evolved 12 | . . . 2 . . . 2 2 . 2 2 . 2 . . . . Power 3 | . . . 1 . . . . . . 1 1 . . . . . . Propulsion 3 | . . . . . . . 2 . . . 1 . . . . . . Utility 4 | . . . 1 . . . . 1 . . . . 2 . . . . Weapon 2 | . . . . . . . . 1 . 1 . . . . . . . Parts Attached 96 | 6 5 5 4 2 1 4 10 2 8 7 2 10 9 4 3 5 9 Power 21 | 1 2 1 . 1 1 . 1 . 3 1 1 7 . . 1 1 . Engine 9 | 1 1 1 . . 1 . . . . 1 1 2 . . . 1 . Core 12 | . 1 . . 1 . . 1 . 3 . . 5 . . 1 . . Reactor . | . . . . . . . . . . . . . . . . . . Propulsion 33 | 2 1 2 3 . . 4 5 . 2 1 1 1 4 2 . . 5 Treads . | . . . . . . . . . . . . . . . . . . Leg 26 | 2 1 1 2 . . . 4 . 2 1 1 1 4 2 . . 5 Wheel . | . . . . . . . . . . . . . . . . . . Hover 3 | . . 1 1 . . 1 . . . . . . . . . . . Flight 4 | . . . . . . 3 1 . . . . . . . . . . Utility 17 | 1 2 . . 1 . . . 1 1 2 . 1 3 1 1 . 3 Device 11 | . 1 . . 1 . . . 1 . 1 . 1 2 1 . . 3 Storage 2 | 1 . . . . . . . . . 1 . . . . . . . Processor 1 | . 1 . . . . . . . . . . . . . . . . Hackware . | . . . . . . . . . . . . . . . . . . Protection 3 | . . . . . . . . . 1 . . . 1 . 1 . . Artifact . | . . . . . . . . . . . . . . . . . . Weapon 25 | 2 . 2 1 . . . 4 1 2 3 . 1 2 1 1 4 1 Energy Gun 3 | 2 . 1 . . . . . . . . . . . . . . . Energy Cannon 18 | . . . . . . . 4 1 1 3 . 1 2 1 . 4 1 Ballistic Gun . | . . . . . . . . . . . . . . . . . . Ballistic Cannon 1 | . . . 1 . . . . . . . . . . . . . . Launcher 3 | . . 1 . . . . . . 1 . . . . . 1 . . Special Weapon . | . . . . . . . . . . . . . . . . . . Impact Weapon . | . . . . . . . . . . . . . . . . . . Slashing Weapon . | . . . . . . . . . . . . . . . . . . Piercing Weapon . | . . . . . . . . . . . . . . . . . . Special Melee Weapon . | . . . . . . . . . . . . . . . . . . Unidentified Prototypes 3 | . . . . . . . 1 . . 1 . . 1 . . . . Parts Lost 38 | . . . . . . 2 1 . 6 . . 1 2 3 2 5 16 Power 9 | . . . . . . 1 1 . 2 . . . . . 1 2 2 Propulsion 14 | . . . . . . 1 . . 1 . . 1 1 1 . 3 6 Utility 7 | . . . . . . . . . 1 . . . 1 2 . . 3 Weapon 8 | . . . . . . . . . 2 . . . . . 1 . 5 Highest Loss Streak 9 | . . . . . . 2 1 . 5 . . 1 1 1 2 5 9 To Critical Strikes . | . . . . . . . . . . . . . . . . . . Average Slot Usage (%) 85 | . 95 91 66 69 76 87 67 91 81 88 90 94 86 98 94 75 48 Engine 3 | . 3 7 11 2 6 1 . . . 3 8 12 . . . 4 2 Core 12 | . 10 6 . 8 11 11 13 7 6 6 5 8 21 21 17 6 . Leg 16 | . 28 13 . . . . 1 30 25 26 27 28 21 25 26 12 13 Hover 2 | . . 7 11 11 4 1 . . . . . . . . . . . Flight 1 | . . . . . . 18 8 . . . . . . . . . . Device 10 | . 3 . . 3 11 11 9 15 10 6 5 5 11 15 15 15 13 Storage 7 | . 14 14 11 11 11 11 9 7 7 6 5 5 5 5 5 5 3 Processor 7 | . 6 14 11 11 11 11 9 7 7 6 5 5 5 5 5 5 5 Protection 2 | . . . . . . . . . 3 6 5 5 5 3 4 5 . Energy Gun 5 | . 28 20 11 11 11 11 2 . . . . . . . . . . Energy Cannon 11 | . . . . . . . 12 22 15 22 23 19 16 21 18 20 7 Ballistic Cannon 2 | . . . 6 11 11 11 2 . . . . . . . . . . Launcher 1 | . . 7 4 . . . . . 3 2 . . . . . . . Naked Turns . | . . . . . . . . . . . . . . . . . . Heaviest Build 105 | 14 15 23 23 23 29 29 24 28 36 60 67 86 103 105 101 88 88 Greatest Support 110 | 20 20 20 8 8 8 8 72 72 72 63 80 80 94 97 97 97 110 Greatest Overweight (x) 9 | 2 . 2 2 2 9 9 7 . . . . 1 1 1 1 2 2 Average Overweight (x) . | . . . 2 2 4 2 . . . . . . . . . 1 . Largest Inventory Capacity 10 | 8 8 8 8 8 8 8 8 8 8 10 10 10 10 10 10 10 10 Average Capacity 9 | 6 8 8 8 8 8 8 8 8 8 9 10 10 10 10 10 10 9 Most Carried 10 | 4 6 8 8 8 8 8 8 7 8 10 10 10 10 10 10 10 8 Average Carried 7 | 2 4 7 7 8 7 7 6 6 6 7 8 9 9 9 8 6 3 Final Capacity 10 | 8 8 8 8 8 8 8 8 8 8 10 10 10 10 10 10 10 5 Final Carried 10 | 2 6 8 8 8 8 7 8 6 6 10 8 10 9 9 8 6 4 Class Distribution -------------------- 36% | Mutant 12% | Generator-Mutant 10% | Generator-Tank 10% | Scavenger-Mutant 9% | Scavenger-Tank 7% | Scavenger-Gunner 7% | Scavenger-Skirmisher 5% | Generator-Skirmisher Dominant Class ---------------- Mutant | -10/Materials Mutant | -10/Mines Mutant | -9/Materials Mutant | -9/Mines Mutant | -9/Exiles Scavenger-Mutant | -8/Mines Scavenger-Mutant | -8/Materials Scavenger-Skirmisher | -7/Factory Scavenger-Skirmisher | -7/DSF Scavenger-Skirmisher | -6/Factory Scavenger-Skirmisher | -5/Factory Generator-Skirmisher | -5/DSF Generator-Mutant | -4/Factory Generator-Tank | -4/Upper Caves Scavenger-Tank | -4/Upper Caves Scavenger-Tank | -4/Zhirov Scavenger-Mutant | -3/Proximity Caves Resources | -11 -10 -10 -9 -9 -9 -8 -8 -7 -7 -6 -5 -5 -4 -4 -4 -4 -3 ----------- Run | Scr Mat Min Mat Min Exi Min Mat Fac DSF Fac Fac DSF Fac Upp Upp Zhi Pro Matter Collected 1542 | 204 106 55 88 74 . 148 118 . 108 135 . 75 149 69 69 . 144 Remotely . | . . . . . . . . . . . . . . . . . . Salvage Created 5702 | . 217 198 70 148 . 116 469 . 353 417 . 643 1302 838 253 85 593 Parts 279 | . 12 11 6 10 . 20 26 . 26 14 . 33 56 33 12 1 19 Haulers Intercepted 3 | . . . . . . . . . 1 1 . . 1 . . . . Recyclers Shooed 1 | . . . . . . . . . . 1 . . . . . . . Parts Field Recycled . | . . . . . . . . . . . . . . . . . . Retrieved Matter . | . . . . . . . . . . . . . . . . . . Parts Self-Destructed 61 | . . . . . . . . . . . . . . 30 16 . 15 Prevented . | . . . . . . . . . . . . . . . . . . Kills | -11 -10 -10 -9 -9 -9 -8 -8 -7 -7 -6 -5 -5 -4 -4 -4 -4 -3 ------- Run | Scr Mat Min Mat Min Exi Min Mat Fac DSF Fac Fac DSF Fac Upp Upp Zhi Pro Combat Hostiles Destroyed 113 | . 3 5 3 4 . 14 10 . 10 3 . 8 20 14 8 . 11 Guns 14 | . 3 5 2 1 . 3 . . . . . . . . . . . Cannons 76 | . . . 1 3 . 11 10 . 4 3 . 7 14 13 3 . 7 AOE 13 | . . . . . . . . . 6 . . . 1 . 4 . 2 Classes Destroyed 17 | . 3 4 1 2 . . . . 4 . . 1 1 1 . . . Worker 5 | . . 1 . 2 . . . . . . . . 2 . . . . Builder 3 | . . 1 . . . . . . . . . . 2 . . . . Tunneler 1 | . . 1 . . . . . . . . . . . . . . . Hauler 3 | . . . . . . . . . 1 1 . . 1 . . . . Recycler 3 | . 1 . . . . . 1 . . 1 . . . . . . . Watcher 4 | . 2 . 1 . . . . . . . . . 1 . . . . Swarmer 44 | . . 3 1 . . 14 3 . 3 . . . 6 5 6 . 3 Cutter 2 | . . . . . . . . . 2 . . . . . . . . Grunt 34 | . 3 2 1 2 . . 3 . 3 2 . 2 8 4 . . 4 Duelist 2 | . . . . 1 . . . . . . . . . 1 . . . Protector 1 | . . . . 1 . . . . . . . . . . . . . Sentry 11 | . . . 1 . . . 4 . . 1 . . 2 2 1 . . Specialist 4 | . . . . . . . . . 1 . . 3 . . . . . Hunter 5 | . . . . . . . . . . . . 2 . 1 . . 2 Programmer 7 | . . . . . . . . . . . . . 4 . 1 . 2 Heavy 2 | . . . . . . . . . 1 . . 1 . . . . . Mutant 1 | . . . . . . . . . . . . . . 1 . . . Best Kill Streak 7 | . 2 3 1 6 . 4 3 . 5 4 . 2 6 4 4 1 7 Combat Bots Only 7 | . 2 3 1 4 . 4 3 . 4 2 . 2 6 4 4 . 7 Max Kills in Single Turn 4 | . 1 2 1 3 . 2 1 . 3 1 . 1 2 1 4 1 2 Gunslinging . | . . . . . . . . . . . . . . . . . . Exploded 4 | . . . . . . . . . 3 . . . 1 . 4 . 2 Melee . | . . . . . . . . . . . . . . . . . . Uniques/NPCs Destroyed 1 | . . . . . . . . . . . . . . . . 1 . Svarog (-4/Zhirov) Combat | -11 -10 -10 -9 -9 -9 -8 -8 -7 -7 -6 -5 -5 -4 -4 -4 -4 -3 -------- Run | Scr Mat Min Mat Min Exi Min Mat Fac DSF Fac Fac DSF Fac Upp Upp Zhi Pro Damage Taken 7190 | . 73 106 138 100 . 257 299 . 818 204 . 357 1179 535 234 716 2174 Core 1503 | . 12 25 19 28 . 47 20 . 154 20 . 9 92 46 36 103 892 Absorbed by Shields . | . . . . . . . . . . . . . . . . . . Core Remaining (%) 90 | 100 . 85 . . . 76 96 . 78 97 . 99 . . . . . Volleys Fired 259 | . 10 13 10 7 1 17 24 . 16 13 . 13 68 21 12 4 30 Largest 4 | . 2 2 2 2 2 2 2 . 3 3 . 4 4 4 3 4 4 Hottest 435 | . 100 100 107 107 107 107 136 . 194 204 . 346 435 280 245 280 280 Shots Fired 595 | . 20 26 19 14 2 32 46 . 30 37 . 50 135 77 34 15 58 Gun 77 | . 20 25 9 7 1 15 . . . . . . . . . . . Cannon 512 | . . . 10 7 1 17 46 . 27 36 . 50 135 77 33 15 58 Launcher 6 | . . 1 . . . . . . 3 1 . . . . 1 . . Special . | . . . . . . . . . . . . . . . . . . Kinetic 37 | . . . 10 7 1 17 2 . . . . . . . . . . Thermal 548 | . 20 25 9 7 1 15 44 . 23 36 . 50 135 77 33 15 58 Explosive 5 | . . . . . . . . . 3 1 . . . . 1 . . Electromagnetic 5 | . . 1 . . . . . . 4 . . . . . . . . Robot Hit Streak 27 | . 17 25 16 24 . 7 9 . 12 12 . 12 21 16 24 14 27 Robot Miss Streak 14 | . . 1 4 2 . 14 4 . 1 2 . 1 2 2 2 . 1 Penetration Max . | . . . . . . . . . . . . . . . . . . Secondary Targets 2 | . 1 1 . . . . . . . . . . . . . . . Max Gunslinging Chain 1 | . 1 1 . . . . . . . . . . . . . . . Shots Hit Robots 398 | . 17 19 16 11 . 25 28 . 19 23 . 28 80 48 27 9 48 Core Hits 231 | . 11 12 13 16 . 30 14 . 16 13 . 17 37 24 9 . 19 Critical Kills 9 | . . . . . . . . . . . . 2 4 1 1 1 . Critical Parts Destroyed . | . . . . . . . . . . . . . . . . . . Critical Strikes 16 | . 1 3 1 1 . 1 . . . . . 2 4 1 1 1 . Burn 7 | . 1 3 1 1 . 1 . . . . . . . . . . . Meltdown 9 | . . . . . . . . . . . . 2 4 1 1 1 . Melee Attacks . | . . . . . . . . . . . . . . . . . . Impact . | . . . . . . . . . . . . . . . . . . Slashing . | . . . . . . . . . . . . . . . . . . Piercing . | . . . . . . . . . . . . . . . . . . Sneak Attacks . | . . . . . . . . . . . . . . . . . . Combat Hostiles . | . . . . . . . . . . . . . . . . . . Follow-up Attacks . | . . . . . . . . . . . . . . . . . . Damage Inflicted 12753 | . 213 294 354 282 . 397 607 . 863 477 . 1124 3245 1659 1158 316 1764 Guns 736 | . 213 232 104 64 . 123 . . . . . . . . . . . Cannons 10792 | . . . 250 218 . 274 607 . 438 471 . 1124 3045 1659 924 316 1466 Explosions 1215 | . . 52 . . . . . . 425 6 . . 200 . 234 . 298 Melee . | . . . . . . . . . . . . . . . . . . Ramming 10 | . . 10 . . . . . . . . . . . . . . . Kinetic 795 | . . . 250 218 . 274 53 . . . . . . . . . . Thermal 11106 | . 213 232 104 64 . 123 554 . 430 471 . 1124 3128 1659 924 316 1764 Explosive 701 | . . . . . . . . . 344 6 . . 117 . 234 . . Electromagnetic 141 | . . 52 . . . . . . 89 . . . . . . . . Impact . | . . . . . . . . . . . . . . . . . . Slashing . | . . . . . . . . . . . . . . . . . . Piercing . | . . . . . . . . . . . . . . . . . . Highest Corruption 10 | . . 1 . . . . . . . . . 1 3 3 5 7 10 Average Corruption 3 | . . 1 . . . . . . . . . 1 2 3 3 6 8 Corruption Purged . | . . . . . . . . . . . . . . . . . . Corruption Blocked . | . . . . . . . . . . . . . . . . . . Effects 77 | . . . . . . . . . . . . 3 5 33 9 10 17 Message Errors 13 | . . . . . . . . . . . . 1 1 5 3 . 3 Matter Fused 22 | . . . . . . . . . . . . 1 2 8 2 3 6 Heat Flow Errors 7 | . . . . . . . . . . . . . . 3 1 1 2 Energy Discharges 7 | . . . . . . . . . . . . . 1 4 . 1 1 Parts Rejected 2 | . . . . . . . . . . . . . . . 1 . 1 Data Loss (minor) 14 | . . . . . . . . . . . . . 1 8 1 3 1 Data Loss (major) 1 | . . . . . . . . . . . . . . 1 . . . Misfires 4 | . . . . . . . . . . . . 1 . 2 . 1 . Alerts 3 | . . . . . . . . . . . . . . 2 1 . . Misdirections 3 | . . . . . . . . . . . . . . . . . 3 Weapon Failures 1 | . . . . . . . . . . . . . . . . 1 . Overload Shots 27 | . . . . . . . . . . . . 8 19 . . . . Effects 1 | . . . . . . . . . . . . . 1 . . . . Short Circuit 1 | . . . . . . . . . . . . . 1 . . . . Overflow Damage 321 | . . . . . . . 2 . . . . . 180 . 39 36 64 Projectiles 283 | . . . . . . . 2 . . . . . 142 . 39 36 64 Explosions 38 | . . . . . . . . . . . . . 38 . . . . Melee . | . . . . . . . . . . . . . . . . . . Knockbacks 18 | . . . 4 5 . 9 . . . . . . . . . . . Impact . | . . . . . . . . . . . . . . . . . . Kinetic 17 | . . . 4 4 . 9 . . . . . . . . . . . Secondary 1 | . . . . 1 . . . . . . . . . . . . . Self-Inflicted Damage 130 | . . 21 . . . . . . 48 9 . . . . . . 52 Shots 5 | . . 1 . . . . . . 2 1 . . . . . . 1 Rammed 1 | . . 1 . . . . . . . . . . . . . . . Targets Rammed 1 | . . 1 . . . . . . . . . . . . . . . Kicked . | . . . . . . . . . . . . . . . . . . Crushed . | . . . . . . . . . . . . . . . . . . Highest Temperature 538 | . 183 360 102 342 3 126 486 . 36 190 . 220 538 492 71 301 360 Average Temperature 130 | . 55 126 38 162 2 34 170 . 16 105 . 106 171 201 23 149 145 Received Heat Transfer 1491 | . 48 51 75 78 . . 144 . 144 105 . 9 229 129 27 36 416 Effects 11 | . . . . . . . 6 . . . . . 1 2 . . 2 Shutdowns 3 | . . . . . . . 2 . . . . . . . . . 1 Energy Bleed 2 | . . . . . . . . . . . . . 1 . . . 1 Interference 4 | . . . . . . . 2 . . . . . . 2 . . . Matter Decay 1 | . . . . . . . 1 . . . . . . . . . . Damage (minor) 1 | . . . . . . . 1 . . . . . . . . . . Siege Activations . | . . . . . . . . . . . . . . . . . . Robots Corrupted . | . . . . . . . . . . . . . . . . . . Combat Hostiles . | . . . . . . . . . . . . . . . . . . Parts Fried 1 | . . 1 . . . . . . . . . . . . . . . Impact Corruptions . | . . . . . . . . . . . . . . . . . . Robots Melted 12 | . . . . . . . . . . . . 2 5 1 1 1 2 Combat Hostiles 10 | . . . . . . . . . . . . 1 5 1 1 . 2 Parts Melted 51 | . 3 4 . 2 . . . . . 1 . 8 10 7 6 2 8 Heat Transferred 16871 | . 703 888 296 213 . 333 999 . 729 851 . 1647 4144 2153 1157 398 2360 Parts Sabotaged . | . . . . . . . . . . . . . . . . . . Parts Stolen . | . . . . . . . . . . . . . . . . . . Parts Stripped . | . . . . . . . . . . . . . . . . . . Power Chain Reactions 1 | . . . . . . . . . 1 . . . . . . . . Missiles Intercepted . | . . . . . . . . . . . . . . . . . . Alert | -11 -10 -10 -9 -9 -9 -8 -8 -7 -7 -6 -5 -5 -4 -4 -4 -4 -3 ------- Run | Scr Mat Min Mat Min Exi Min Mat Fac DSF Fac Fac DSF Fac Upp Upp Zhi Pro Peak Influence 617 | . 103 153 120 139 . 405 617 240 486 335 141 274 549 . . . . Initial 240 | . . 33 3 39 . . 67 240 148 221 141 89 124 . . . . Average 190 | . 64 39 48 98 . 296 338 240 317 303 141 205 281 . . . . Maximum Alert Level 2 | . . . . . . 2 2 1 2 1 . 1 2 . . . . Low Security (%) 55 | 100 100 100 100 100 . 20 38 . 32 . 100 35 22 . . . . Level 1 29 | . . . . . . 29 7 100 32 100 . 64 59 . . . . Level 2 14 | . . . . . . 50 54 . 34 . . . 17 . . . . Level 3 . | . . . . . . . . . . . . . . . . . . Level 4 . | . . . . . . . . . . . . . . . . . . Level 5 . | . . . . . . . . . . . . . . . . . . High Security . | . . . . . . . . . . . . . . . . . . Max Security . | . . . . . . . . . . . . . . . . . . Sterilizations 2 | . . . . . . . . . 1 . . 1 . . . . . Squads Dispatched 16 | . 1 1 2 1 . . 1 . 2 . . 2 6 . . . . Investigation 3 | . 1 1 1 . . . . . . . . . . . . . . Extermination 2 | . . . . . . . . . . . . . 2 . . . . Reinforcement 7 | . . . 1 . . . . . 2 . . 2 2 . . . . Assault 3 | . . . . 1 . . 1 . . . . . 1 . . . . Garrison 1 | . . . . . . . . . . . . . 1 . . . . Intercept . | . . . . . . . . . . . . . . . . . . Searches Triggered . | . . . . . . . . . . . . . . . . . . Construction Impeded 1 | . . . . . . . . . . . . . 1 . . . . Haulers Reinforced 1 | . . . . . . . . . . . . . 1 . . . . Active Scanning Responses . | . . . . . . . . . . . . . . . . . . Cargo Convoy Interrupts . | . . . . . . . . . . . . . . . . . . Stealth | -11 -10 -10 -9 -9 -9 -8 -8 -7 -7 -6 -5 -5 -4 -4 -4 -4 -3 --------- Run | Scr Mat Min Mat Min Exi Min Mat Fac DSF Fac Fac DSF Fac Upp Upp Zhi Pro Distress Signals 4 | . 1 . 1 . . . . . . . . . 2 . . . . Communications Jammed . | . . . . . . . . . . . . . . . . . . Distress Signals . | . . . . . . . . . . . . . . . . . . Times Spotted 172 | . 8 5 14 7 . 16 16 . 18 3 . 8 25 17 11 3 21 Peak Tracking Total 9 | . 3 3 5 5 . 4 6 . 5 2 . 2 5 4 5 3 9 Tactical Retreats 10 | . . . . . . 2 2 . 5 . . . . . . . 1 Traps | -11 -10 -10 -9 -9 -9 -8 -8 -7 -7 -6 -5 -5 -4 -4 -4 -4 -3 ------- Run | Scr Mat Min Mat Min Exi Min Mat Fac DSF Fac Fac DSF Fac Upp Upp Zhi Pro Traps Triggered 5 | . . . 1 . . . . . . . . 3 1 . . . . Indirectly . | . . . . . . . . . . . . . . . . . . Trap Hack Attempts . | . . . . . . . . . . . . . . . . . . Triggered . | . . . . . . . . . . . . . . . . . . Disarmed . | . . . . . . . . . . . . . . . . . . Reprogrammed . | . . . . . . . . . . . . . . . . . . Reused . | . . . . . . . . . . . . . . . . . . Traps Extracted . | . . . . . . . . . . . . . . . . . . Installed . | . . . . . . . . . . . . . . . . . . Triggered . | . . . . . . . . . . . . . . . . . . Machines | -11 -10 -10 -9 -9 -9 -8 -8 -7 -7 -6 -5 -5 -4 -4 -4 -4 -3 ---------- Run | Scr Mat Min Mat Min Exi Min Mat Fac DSF Fac Fac DSF Fac Upp Upp Zhi Pro Machines Disabled 20 | . . . 1 . . . 2 . 1 1 . . 9 1 . 1 4 Max in Single Turn 6 | . . . . . . . 1 . 1 1 . . 6 1 . 1 4 Garrison Access 2 | . . . . . . . 1 . . . . . 1 . . . . Machines Sabotaged . | . . . . . . . . . . . . . . . . . . Garrisons Compromised . | . . . . . . . . . . . . . . . . . . Overloaded Fab Kills . | . . . . . . . . . . . . . . . . . . Hacking | -11 -10 -10 -9 -9 -9 -8 -8 -7 -7 -6 -5 -5 -4 -4 -4 -4 -3 --------- Run | Scr Mat Min Mat Min Exi Min Mat Fac DSF Fac Fac DSF Fac Upp Upp Zhi Pro Machines Accessed 14 | . 2 1 . . 4 . 2 1 . . 1 . 3 . . . . Terminals 8 | . 2 . . . . . 2 1 . . 1 . 2 . . . . Fabricators 1 | . . . . . . . . . . . . . 1 . . . . Repair Stations . | . . . . . . . . . . . . . . . . . . Recycling Units . | . . . . . . . . . . . . . . . . . . Scanalyzers . | . . . . . . . . . . . . . . . . . . Garrison Access . | . . . . . . . . . . . . . . . . . . Total Hacks 47 | . 5 1 . . 28 . 2 2 . . 1 . 8 . . . . Successful 43 | . 4 1 . . 28 . 2 1 . . 1 . 6 . . . . Failed 4 | . 1 . . . . . . 1 . . . . 2 . . . . Catastrophic . | . . . . . . . . . . . . . . . . . . Database Lockouts . | . . . . . . . . . . . . . . . . . . Manual 1 | . . . . . 1 . . . . . . . . . . . . Terminals 15 | . 5 . . . . . 2 2 . . 1 . 5 . . . . Fabricators 3 | . . . . . . . . . . . . . 3 . . . . Repair Stations . | . . . . . . . . . . . . . . . . . . Recycling Units . | . . . . . . . . . . . . . . . . . . Scanalyzers . | . . . . . . . . . . . . . . . . . . Garrison Access . | . . . . . . . . . . . . . . . . . . Terminal Hacks 41 | . 4 1 . . 28 . 2 1 . . 1 . 4 . . . . Record 30 | . . . . . 28 . . . . . . . 2 . . . . Prototype ID Bank 2 | . 2 . . . . . . . . . . . . . . . . Open Door 1 | . . 1 . . . . . . . . . . . . . . . Open DSF 3 | . . . . . . . . 1 . . 1 . 1 . . . . Branch Access Points 1 | . . . . . . . 1 . . . . . . . . . . Locate Traps 1 | . 1 . . . . . . . . . . . . . . . . Hauler Manifests 1 | . 1 . . . . . . . . . . . . . . . . Zone Layout 2 | . . . . . . . 1 . . . . . 1 . . . . Fabricator Hacks 2 | . . . . . . . . . . . . . 2 . . . . Network Status 1 | . . . . . . . . . . . . . 1 . . . . Build 1 | . . . . . . . . . . . . . 1 . . . . Repair Station Hacks . | . . . . . . . . . . . . . . . . . . Recycling Unit Hacks . | . . . . . . . . . . . . . . . . . . Scanalyzer . | . . . . . . . . . . . . . . . . . . Garrison Access Hacks . | . . . . . . . . . . . . . . . . . . Unauthorized Hacks . | . . . . . . . . . . . . . . . . . . Terminals . | . . . . . . . . . . . . . . . . . . Fabricators . | . . . . . . . . . . . . . . . . . . Repair Stations . | . . . . . . . . . . . . . . . . . . Recycling Units . | . . . . . . . . . . . . . . . . . . Scanalyzers . | . . . . . . . . . . . . . . . . . . Garrison Access . | . . . . . . . . . . . . . . . . . . Data Cores Recovered . | . . . . . . . . . . . . . . . . . . Used . | . . . . . . . . . . . . . . . . . . Hacking Detections 7 | . 1 . . . . . 1 1 . . 1 . 3 . . . . Full Trace Events 1 | . 1 . . . . . . . . . . . . . . . . Feedback Events . | . . . . . . . . . . . . . . . . . . Feedback Blocked . | . . . . . . . . . . . . . . . . . . Robot Schematics Acquired . | . . . . . . . . . . . . . . . . . . Robots Built . | . . . . . . . . . . . . . . . . . . Authchips . | . . . . . . . . . . . . . . . . . . Time . | . . . . . . . . . . . . . . . . . . Total Robot Build Rating . | . . . . . . . . . . . . . . . . . . Part Schematics Acquired . | . . . . . . . . . . . . . . . . . . Parts Built 1 | . . . . . . . . . . . . . 1 . . . . Authchips . | . . . . . . . . . . . . . . . . . . Time 139 | . . . . . . . . . . . . . 139 . . . . Total Part Build Rating 9 | . . . . . . . . . . . . . 9 . . . . Parts Repaired . | . . . . . . . . . . . . . . . . . . Time . | . . . . . . . . . . . . . . . . . . Parts Recycled . | . . . . . . . . . . . . . . . . . . Recycled Matter . | . . . . . . . . . . . . . . . . . . Retrieved Matter . | . . . . . . . . . . . . . . . . . . Retrieved Components . | . . . . . . . . . . . . . . . . . . Parts Scanalyzed . | . . . . . . . . . . . . . . . . . . Part Schematics Acquired . | . . . . . . . . . . . . . . . . . . Parts Damaged . | . . . . . . . . . . . . . . . . . . Bothacking | -11 -10 -10 -9 -9 -9 -8 -8 -7 -7 -6 -5 -5 -4 -4 -4 -4 -3 ------------ Run | Scr Mat Min Mat Min Exi Min Mat Fac DSF Fac Fac DSF Fac Upp Upp Zhi Pro Used RIF Installer . | . . . . . . . . . . . . . . . . . . Robots Hacked . | . . . . . . . . . . . . . . . . . . Non-combat . | . . . . . . . . . . . . . . . . . . Combat . | . . . . . . . . . . . . . . . . . . Robot Hacks Applied . | . . . . . . . . . . . . . . . . . . Relay Couplers Released 4 | . . . . . . . 2 . . . . . 2 . . . . Machine Destruction 4 | . . . . . . . 2 . . . . . 2 . . . . Fabnet Peak Effective % . | . . . . . . . . . . . . . . . . . . Robots Rewired 5 | . . . . . . . . . . . . . . 5 . . . Allies Hacked 1 | . . . . . . . . . . . . . . . 1 . . Hacks Repelled . | . . . . . . . . . . . . . . . . . . Allies | -11 -10 -10 -9 -9 -9 -8 -8 -7 -7 -6 -5 -5 -4 -4 -4 -4 -3 -------- Run | Scr Mat Min Mat Min Exi Min Mat Fac DSF Fac Fac DSF Fac Upp Upp Zhi Pro Total Allies 8 | . . 2 . 1 . . . . . . . . . 5 . . . Largest Group 3 | . . 2 2 3 . . . . . . . . . 3 2 2 . Highest-Rated Group 138 | . . 46 46 77 . . . . . . . . . 138 79 79 . Highest-Rated Ally 49 | . . 31 31 31 . . . . . . . . . 49 49 49 . Total Orders . | . . . . . . . . . . . . . . . . . . Ally Attacks 61 | . . . 11 18 . . . . . . . . . 21 5 6 . Total Damage 1254 | . . . 103 273 . . . . . . . . . 593 187 98 . Kills 10 | . . . 1 3 . . . . . . . . . 3 3 . . Allies Corrupted . | . . . . . . . . . . . . . . . . . . Allies Melted . | . . . . . . . . . . . . . . . . . . Intel | -11 -10 -10 -9 -9 -9 -8 -8 -7 -7 -6 -5 -5 -4 -4 -4 -4 -3 ------- Run | Scr Mat Min Mat Min Exi Min Mat Fac DSF Fac Fac DSF Fac Upp Upp Zhi Pro Robot Analysis Total . | . . . . . . . . . . . . . . . . . . Derelict Logs Recovered 3 | . . 1 . . . . . . . . . . . 1 1 . . Drone Launches . | . . . . . . . . . . . . . . . . . . Drone Recoveries . | . . . . . . . . . . . . . . . . . . Exploration | -11 -10 -10 -9 -9 -9 -8 -8 -7 -7 -6 -5 -5 -4 -4 -4 -4 -3 ------------- Run | Scr Mat Min Mat Min Exi Min Mat Fac DSF Fac Fac DSF Fac Upp Upp Zhi Pro Turns Passed 9349 | 54 266 972 365 298 1096 428 379 113 314 317 50 262 928 2150 481 454 422 Spaces Moved 5213 | 37 178 627 183 152 364 184 419 93 183 243 45 141 326 1178 328 190 342 Core 314 | 14 . . . . 137 1 1 . . . . . . . . . 161 Treads . | . . . . . . . . . . . . . . . . . . Legs 3474 | 23 178 347 . . . . 18 93 183 243 45 141 326 1178 328 190 181 Wheels . | . . . . . . . . . . . . . . . . . . Hover 859 | . . 280 183 152 227 17 . . . . . . . . . . . Flight 566 | . . . . . . 166 400 . . . . . . . . . . Fastest Speed 50 | 50 120 120 180 180 180 197 50 120 105 105 105 110 112 122 122 122 50 Average Speed 155 | 109 120 146 180 180 299 202 54 120 114 105 108 130 178 171 136 230 91 Slowest Speed 500 | 150 120 180 180 180 500 500 400 120 120 105 110 190 196 194 192 260 260 Overloaded Moves . | . . . . . . . . . . . . . . . . . . Propulsion Burnouts . | . . . . . . . . . . . . . . . . . . Robots Hopped 2 | . . . . . . . 2 . . . . . . . . . . Cave-ins Triggered . | . . . . . . . . . . . . . . . . . . Exploration Rate (%) 47 | 3 27 99 25 27 65 38 38 4 96 11 2 96 11 98 55 96 59 Regions Visited 17 Branch Regions 8 Pre-discovered Areas 1 | . . . . . 1 . . . . . . . . . . . . Known Exits Taken 14 | . 1 1 1 1 1 1 1 1 . 1 1 . 1 1 1 1 . Unknown Exits Taken 1 | 1 . . . . . . . . . . . . . . . . . Scrap Searched 11 | . . 3 . . . . . . . . . . . 3 4 . 1 Spaces Dug 2 | . . . . . . . . . . . . . . 1 . 1 . Terrain Destroyed 116 | . . . . . . . . . 19 10 . . 34 23 10 1 19 Melee . | . . . . . . . . . . . . . . . . . . Projectile 51 | . . . . . . . . . . . . . 20 23 3 1 4 AOE 65 | . . . . . . . . . 19 10 . . 14 . 7 . 15 Terrain Rammed . | . . . . . . . . . . . . . . . . . . Walls Destroyed . | . . . . . . . . . . . . . . . . . . Machines Disabled . | . . . . . . . . . . . . . . . . . . Actions | -11 -10 -10 -9 -9 -9 -8 -8 -7 -7 -6 -5 -5 -4 -4 -4 -4 -3 --------- Run | Scr Mat Min Mat Min Exi Min Mat Fac DSF Fac Fac DSF Fac Upp Upp Zhi Pro Total 6020 | 50 208 654 199 162 373 207 524 94 257 278 46 190 555 1259 344 201 419 Wait 335 | . 11 . . . . . 59 . 46 . . . 149 42 . . 28 Move 5192 | 36 177 626 182 151 363 183 414 92 182 242 44 140 325 1177 327 189 342 Hop 2 | . . . . . . . 2 . . . . . . . . . . Pick Up 62 | 8 5 3 1 1 2 2 8 . 5 11 . 7 1 2 1 . 5 Fast Attach 25 | . . 4 . 1 1 1 6 . 3 . . 3 4 2 . . . Attach 53 | 6 1 . 1 . . 2 4 2 5 5 2 5 2 1 3 5 9 Detach 10 | . . . 1 . . . . . . . . 2 . . 1 3 3 Swap 18 | . 4 1 3 1 . 1 . . . 2 . 2 3 1 . . . Drop 43 | . . 6 1 1 6 1 7 . . 5 . 8 3 3 . . 2 Fire 259 | . 10 13 10 7 1 17 24 . 16 13 . 13 68 21 12 4 30 Melee . | . . . . . . . . . . . . . . . . . . Ram 1 | . . 1 . . . . . . . . . . . . . . . Kick . | . . . . . . . . . . . . . . . . . . Crush . | . . . . . . . . . . . . . . . . . . Escape Stasis 10 | . . . . . . . . . . . . 10 . . . . . Rewire 10 | . . . . . . . . . . . . . . 10 . . . Trap . | . . . . . . . . . . . . . . . . . . Miscellaneous . | . . . . . . . . . . . . . . . . . . Route ------- -11/Scrapyard -10/Materials -10/Mines (discovered 2 exits: *Mat x2) -9/Materials -9/Mines (discovered 2 exits: *Mat / *Exi) -9/Exiles (discovered 2 exits: *Min x2) -8/Mines -8/Materials -7/Factory -7/DSF -6/Factory -5/Factory -5/DSF -4/Factory (discovered 2 exits: *Res / *Upp) -4/Upper Caves -4/Upper Caves (discovered 2 exits: *Res / *Zhi) -4/Zhirov -3/Proximity Caves History --------- Turn | Location | Event 30 | -11/Scrapyard | Discovered new exit (range 15) 55 | -11/Scrapyard | Entered Materials 157 | -10/Materials | Discovered new exit (range 15) 222 | -10/Materials | Identified exit to Mines 314 | -10/Materials | Build established: Mutant 321 | -10/Materials | Entered Mines 352 | -10/Mines | Met a Derelict bent on vengeance 408 | -10/Mines | Discovered new exit (range 14) 443 | -10/Mines | Identified exit to Materials 664 | -10/Mines | Discovered exit to Materials (range 12) 763 | -10/Mines | Learned Materials interactive machine intel 768 | -10/Mines | Met a Derelict shopkeep closing up shop 1293 | -10/Mines | Entered Materials 1293 | -9/Materials | Accompanied by 2 allies 1293 | -9/Materials | Evolved 2 slots: Power x1, Utility x1 1294 | -9/Materials | Loaded intel: 18 interactive machine locations 1298 | -9/Materials | Led the pair of lost Derelicts to an unsafe place 1637 | -9/Materials | Discovered new exit (range 9) 1656 | -9/Materials | Identified exit to Mines 1658 | -9/Materials | Entered Mines 1658 | -9/Mines | Accompanied by 2 allies 1665 | -9/Mines | Received a Rocket Launcher from a helpful Derelict 1754 | -9/Mines | Met a Derelict testing a Signal Generator 1818 | -9/Mines | Discovered new exit (range 11) 1947 | -9/Mines | Deemed a non-threat by the Exiles lab entrance 1949 | -9/Mines | Discovered new exit (range 5) 1954 | -9/Mines | Identified exit to Exiles 1956 | -9/Mines | Entered Exiles 1982 | -9/Exiles | Discovered new exit (range 15) 2012 | -9/Exiles | Met 8R-AWN 2039 | -9/Exiles | Met EX-HEX 2097 | -9/Exiles | Met EX-BIN 2142 | -9/Exiles | Aligned with FarCom system 2144 | -9/Exiles | Given EX-Vault access code 2304 | -9/Exiles | Opened EX-Vault 2371 | -9/Exiles | Found Prototype Flight Unit 2502 | -9/Exiles | Warned to stay clear of 0b10 Research branches 2647 | -9/Exiles | Met EX-DEC 2677 | -9/Exiles | Learned location of Zion (-7) 2982 | -9/Exiles | Discovered new exit (range 14) 3047 | -9/Exiles | Identified exit to Mines 3052 | -9/Exiles | Left Exiles lab with Flying Fortress v7 3052 | -9/Exiles | Entered Mines 3419 | -8/Mines | Build established: Scavenger-Mutant 3462 | -8/Mines | Discovered new exit (range 9) 3478 | -8/Mines | Identified exit to Materials 3480 | -8/Mines | Entered Materials 3480 | -8/Materials | Evolved 2 slots: Propulsion x2 3482 | -8/Materials | Identified Flying Fortress v7 3849 | -8/Materials | Discovered new exit (range 8) 3858 | -8/Materials | Identified exit to Factory 3859 | -8/Materials | Entered Factory 3859 | -7/Factory | Evolved 2 slots: Utility x1, Weapon x1 3972 | -7/Factory | Identified exit to DSF 3972 | -7/Factory | Entered DSF 4005 | -7/DSF | Additional patrols routed to DSF 4026 | -7/DSF | Discovered new exit (range 16) 4047 | -7/DSF | Identified exit to Factory 4107 | -7/DSF | Lost 5 parts (2p1n2w) 4197 | -7/DSF | Sterilization system engaged 4217 | -7/DSF | Ambient heat levels rising (+10) 4232 | -7/DSF | Ambient heat levels rising (+10) 4247 | -7/DSF | Ambient heat levels rising (+10) 4262 | -7/DSF | Ambient heat levels rising (+10) 4277 | -7/DSF | Ambient heat levels rising (+10) 4286 | -7/DSF | Entered Factory 4286 | -6/Factory | Evolved 2 slots: Power x1, Weapon x1 4593 | -6/Factory | Discovered new exit (range 10) 4601 | -6/Factory | Identified exit to Factory 4603 | -6/Factory | Entered another Factory area 4603 | -5/Factory | Evolved 2 slots: Power x1, Propulsion x1 4616 | -5/Factory | Build established: Scavenger-Skirmisher 4653 | -5/Factory | Identified exit to DSF 4653 | -5/Factory | Entered DSF 4696 | -5/DSF | Additional patrols routed to DSF 4876 | -5/DSF | Discovered new exit (range 11) 4887 | -5/DSF | Identified exit to Factory 4908 | -5/DSF | Sterilization system engaged 4915 | -5/DSF | Entered Factory 4915 | -4/Factory | Evolved 2 slots: Utility x2 4957 | -4/Factory | Discovered new exit (range 17) 4986 | -4/Factory | Identified exit to Research 5515 | -4/Factory | Fabricated Enh. Nova Cannon (x1) 5581 | -4/Factory | Garrison activated, responded to threat 5829 | -4/Factory | Discovered new exit (range 7) 5841 | -4/Factory | Identified exit to Upper Caves 5843 | -4/Factory | Entered Upper Caves 5956 | -4/Upper Caves | Build established: Generator-Mutant 6183 | -4/Upper Caves | Learned Research security intel 6299 | -4/Upper Caves | Attacked by a delusional Derelict stockpiling Unaware 6544 | -4/Upper Caves | Attracted the attention of an 0b10 checkpoint 6603 | -4/Upper Caves | Build established: Generator-Tank 6760 | -4/Upper Caves | Discovered new exit (range 15) 6810 | -4/Upper Caves | Identified exit to Upper Caves 7299 | -4/Upper Caves | Attracted the attention of an 0b10 outpost 7609 | -4/Upper Caves | Build established: Scavenger-Gunner 7993 | -4/Upper Caves | Entered another Upper Caves area 7993 | -4/Upper Caves | Accompanied by 2 allies 7996 | -4/Upper Caves | Discovered exit to Research (range 13) 8214 | -4/Upper Caves | Learned Research emergency access door positions 8324 | -4/Upper Caves | Attracted the attention of an 0b10 checkpoint 8407 | -4/Upper Caves | Discovered new exit (range 11) 8418 | -4/Upper Caves | Identified exit to Zhirov 8474 | -4/Upper Caves | Entered Zhirov 8474 | -4/Zhirov | Accompanied by 2 allies 8474 | -4/Zhirov | Discovered new exit (range 3) 8498 | -4/Zhirov | Identified exit to Proximity Caves 8516 | -4/Zhirov | Cloak Generator disabled 8516 | -4/Zhirov | Attacked by Zhirov 8520 | -4/Zhirov | Met Zhirov 8527 | -4/Zhirov | Destroyed Svarog 8541 | -4/Zhirov | Zhirov detonated his lab 8572 | -4/Zhirov | Lost 5 parts (2p3n) 8620 | -4/Zhirov | Build established: Scavenger-Tank 8928 | -4/Zhirov | Entered Proximity Caves 8987 | -3/Proximity Caves | Attracted the attention of an 0b10 base 9037 | -3/Proximity Caves | Destroyed 7 combat bots 9039 | -3/Proximity Caves | Lost 9 parts (1p3n2u3w) 9133 | -3/Proximity Caves | System corruption reached 10% 9265 | -3/Proximity Caves | Attracted the attention of an 0b10 checkpoint 9282 | -3/Proximity Caves | Core integrity fell below 50% 9298 | -3/Proximity Caves | Lost 5 parts (3n1u1w) 9323 | -3/Proximity Caves | Spotted B-86 Titan 9346 | -3/Proximity Caves | Core integrity fell below 20% 9350 | -3/Proximity Caves | Destroyed by G-73 Enforcer with Phase Gun Last Messages --------------- G-67 Veteran overheating. Y-72 Warden: "INTERCEPTING UNREGISTERED DERELICT." Penetrated by Slug. Flexi-carbon Leg destroyed. Dropped Reflective Plating. Critical hit (Burn: +37). Dropped Med. Storage Unit. Slug penetrates Wall. System corrupted: Heat flow error (+220). Penetrated by Slug. Slug penetrates Wall. ITP:3:K,USZ/KUNGXM|VVYDTQMZE>#U|B System corrupted: Matter fused (-9). Penetrated by Slug. Slug penetrates Wall. System corrupted: Matter fused (-5). Searching scrap... Found Flamer. Found 22 Matter. Acquired 14 matter. Map ----- +----------------------------------------------------+ | | | | | | | ?????????????????????????????????????????????????? | | ?????????????????????????????????????????????????? | | ?????????????????????????????????????????????????? | | ?????????????????????????????????????????????????? | | ?????????????????????????????????????????????????? | | ?????????????????????????????????????????????????? | | ?????????????????????????????????????????????????? | | ?????????????????????????????????????????????????? | | ?????????????????????????????????????????????????? | | ?????????????????????????????????????????????????? | | ?????????????????????????????????????????????????? | | ?????????????????????????????????????????????????? | | ?????????????????????????????????????????????????? | | ?????????????????????????????????????????????????? | | ?????????????????????????????????????????????????? | | ?????????????????????????????????????????????????? | | ???????????????????????????????????####??????????? | | ??????????????????????????????????## #??????????? | | ?????????????????????????####?????# #??????????? | | ##????????????????????#### ####### ##?????????? | | ##????????? ??????## ## ##????????? | | ##???????? ???????# #????????? | | ???????? #???????# @ ##???????? | | $#??????## #???##??## g #???????? | | #?????# #??## ### sss #???????? | | #????? #### g g##|% ## ##???????? | | ##???# ## ### ##?##????????? | | ##?? #?### ##????????????? | | ### #########?????????????? | | g #??????????????????? | | #??????????????????? | | ### #??????????????????? | | ??# #??????????????????? | | ###### ??# #??????????????????? | | ### #???####??# #??????????????????? | | ### ####??## #?????????# #??????????????????? | | ##?######??????# #?????????# #??????????????????? | | ##?????????????# ##?####???# #??????????????????? | | ##????????????#Y ### ##??# #??????????????????? | | #???????????## ## ##?" #??????????????????? | | ############# # ### ###????????????????? | | # # #" ##???????????????? | | ######## % #???????????????? | | ### #?????##### BB #??????????????? | | #####?## #???## ##?# BB #?????????????? | | ##??????# ###?### #?## #?????????????? | | ##???????# # ### #?? #?????????????? | +----------------------------------------------------+ Best States ------------- Heat Dissipation 88 Coolant Potential 65 Energy Generation 58 Energy Capacity 945 Matter Stores 300 Matter Capacity 300 Sight Range 16 Terrain Scan Density 10 Base Temperature (-) 200 Armor Coverage 225 Resistance: KI 20 Resistance: TH 20 Resistance: EX 20 Resistance: EM 20 Resistance: I 20 Resistance: S 20 Resistance: P 20 Weapon Cycling 20 Evasion (%) 60 Matter Filtering 50 Offensive Hacking 10 Item Schematics ----------------- None Robot Schematics ------------------ None Fabricated ------------ Enh. Nova Cannon | x1 | -4/Factory | Preloaded Alien Tech Used ----------------- None Achievements -------------- Exposed The Science Guy Challenges ------------ None Game ------ Seed DataTrapBuckler Manual? 0 Play Time 01:31:08 Cumulative 65.5 hours Start 2022.03.20 @ 22:57:16 End 2022.03.27 @ 20:43:50 Sessions 3 Manual Loads 0 Difficulty Adventurer Special Mode None Game No. 33 Rogue 21 Adventurer 12 Explorer 0 Win Type - Total 1 Types 1/0/0/0/0/0/0/0/0 Lore% 35 Gallery% 51 Achievement% 42 Wizard Run 0 Options --------- ASCII 0 Keyboard 0 Movement Mouse Keybinds 0 Fullscreen 1 Font 18/SmallcapsGlow Map View 76x50 Tactical HUD 0 Map Filters NONE Filters NONE Steam 1 RUN: d3c55356-6df7-4e0f-8bad-a991d493e1cd